bitfinex/quotes_ETHUSD_20240810
["timestamp","ask_amount","ask_price","bid_price","bid_amount"]
[1723257492370,3.82746,2612.7,2612.4,0.06682759]
[1723257492997,2.2881,2613.8,2612.8,3.82729]
[1723257493180,3.82638,2613.5,2612.9,0.382729]
[1723257493371,3.82638,2613.5,2612.9,2.3106]
[1723257493570,3.82638,2613.5,2613.0,0.06682759]
[1723257493774,3.82612,2613.7,2613.0,0.06682759]
[1723257494081,0.634303,2613.6,2613.0,3.89382759]
[1723257494390,4.05471,2613.8,2613.1,3.82685]
[1723257494391,3.8259,2613.8,2613.1,3.82685]
[1723257494598,3.8259,2613.8,2613.2,0.06584714]
[1723257495473,3.82629,2613.5,2613.2,0.06584714]
[1723257495694,4.208919,2613.5,2613.2,0.06584714]
[1723257495894,3.82629,2613.5,2613.2,0.06584714]
[1723257496118,3.82603,2613.7,2613.3,2.3106]
[1723257496306,3.82584,2613.9,2613.3,2.37459314]
[1723257496502,3.82584,2613.9,2613.3,6.20116314]
[1723257496700,3.82584,2613.9,2613.3,7.20395445]
[1723257497597,3.82546,2614.1,2613.4,3.82641]
[1723257497799,3.82518,2614.3,2613.6,6.13664]
[1723257498004,3.82518,2614.3,2613.7,0.62766364]
[1723257498205,3.82518,2614.3,2613.6,6.13664]
[1723257498413,3.82518,2614.3,2613.6,6.21018317]
[1723257498712,3.82518,2614.3,2613.7,0.06347652]
[1723257499076,3.82487,2614.5,2613.8,3.82573]
[1723257499303,3.82458,2614.7,2614.0,3.82544]
[1723257499502,3.82458,2614.7,2614.0,4.817083]
[1723257499706,3.82458,2614.7,2614.1,2.40527315]
[1723257499908,3.82458,2614.7,2614.1,6.23062315]
[1723257500211,3.82428,2614.9,2614.1,6.23062315]
[1723257500416,2.3992,2615.2,2614.1,6.23062315]
[1723257500417,3.82493,2614.5,2614.1,2.32877652]
[1723257500601,3.82512,2614.3,2614.1,2.32877652]
[1723257500790,3.82512,2614.3,2614.1,0.06347652]
[1723257501126,3.82579,2613.9,2613.7,9.7553]
[1723257501283,6.82411,2615.0,2614.2,0.0628088]
[1723257501483,6.82411,2615.0,2613.9,3.82567]
[1723257501484,3.82457,2614.7,2614.0,6.09084]
[1723257501791,3.23992,2615.1,2614.1,4.82467122]
[1723257501792,3.82447,2614.8,2614.1,4.82467122]
[1723257502105,3.82447,2614.8,2614.2,0.06290671]
[1723257502311,3.82447,2614.8,2614.2,3.88813671]
[1723257502521,7.64834,2615.0,2614.4,2.2653]
[1723257502737,3.0,2615.2,2614.4,2.2653]
[1723257502738,3.82387,2615.2,2614.4,2.2653]
[1723257502928,2.3992,2615.6,2614.5,0.06288891]
[1723257503311,3.82426,2614.9,2614.5,0.06288891]
[1723257503506,3.82426,2614.9,2614.5,0.6782138]
[1723257503718,3.82423,2615.0,2614.5,0.6782138]
[1723257504034,3.82442,2614.8,2614.5,0.6782138]
[1723257504236,3.82442,2614.8,2614.5,0.06288891]
[1723257504597,3.82446,2614.8,2614.5,0.06288891]
[1723257505738,3.8241,2615.0,2614.5,0.06288891]
[1723257506297,3.82395,2615.1,2614.6,2.2653]
[1723257506608,3.82395,2615.1,2614.7,0.67681695]
[1723257507134,6.82308,2615.7,2615.0,3.82398]
[1723257507135,3.82316,2615.7,2615.0,3.82398]
[1723257507431,3.82316,2615.7,2615.2,2.2653]
[1723257507832,3.82316,2615.7,2615.3,0.06137569]
[1723257508329,7.647,2615.4,2615.3,0.06137569]
[1723257508826,0.382316,2615.7,2614.8,2.2653]
[1723257509030,2.3992,2616.1,2615.0,2.2653]
[1723257509031,3.82333,2615.6,2615.0,2.2653]
[1723257509524,3.82333,2615.6,2615.1,0.06104654]
[1723257509727,3.82336,2615.5,2615.1,0.06104654]
[1723257510096,3.8235,2615.4,2615.1,0.06104654]
[1723257510327,7.64758,2615.2,2615.1,0.06104654]
[1723257510728,3.82411,2615.0,2614.7,2.2653]
[1723257511031,3.82379,2615.2,2614.7,2.2653]
[1723257511226,3.82379,2615.2,2614.8,0.06104654]
[1723257511434,3.82353,2615.4,2614.9,2.2653]
[1723257511805,3.82353,2615.4,2615.0,0.06104654]
[1723257513334,3.82353,2615.4,2615.1,2.2653]
[1723257514031,7.64718,2615.4,2615.2,0.06104654]
[1723257514332,3.82365,2615.3,2615.2,0.06104654]
[1723257514544,3.82353,2615.4,2615.2,0.06104654]
[1723257515806,7.6473,2615.3,2615.2,0.06104654]
[1723257516008,3.82434,2614.9,2614.6,7.49]
[1723257516357,3.82404,2615.1,2614.7,0.06059281]
[1723257516358,7.64876,2614.8,2614.7,0.06059281]
[1723257517445,3.82438,2614.8,2614.7,0.06059281]
[1723257517607,7.64876,2614.8,2614.7,0.06059281]
[1723257519843,3.0,2615.3,2614.7,2.40869281]
[1723257519844,3.82414,2615.0,2614.7,2.40869281]
[1723257520055,3.82433,2614.9,2614.7,2.40869281]
[1723257520206,3.82438,2614.8,2614.7,2.40869281]
[1723257521242,7.64833,2615.0,2614.7,2.40869281]
[1723257521443,3.276633,2615.0,2614.7,0.06059281]
[1723257521656,3.8248,2614.6,2614.1,2.3481]
[1723257521801,3.82491,2614.5,2614.2,0.06102873]
[1723257522850,3.82441,2614.8,2614.2,0.06102873]
[1723257523006,7.64891,2614.8,2614.2,4.5097526]
[1723257523351,3.82441,2614.8,2614.2,4.5097526]
[1723257523551,3.82413,2615.0,2614.3,2.37840803]
[1723257523709,3.82382,2615.2,2614.5,2.3481]
[1723257523906,3.82395,2615.1,2614.6,0.69377565]
[1723257524138,3.82395,2615.1,2614.6,0.67832273]
[1723257524342,3.82395,2615.1,2614.6,0.7548051]
[1723257524550,3.82395,2615.1,2614.6,0.67832273]
[1723257525057,3.82395,2615.1,2614.7,0.68511527]
[1723257525510,3.82426,2614.9,2614.8,0.06102873]
[1723257525914,3.82426,2614.9,2614.5,2.3481]
[1723257525915,3.8244,2614.8,2614.5,2.3481]
[1723257526112,3.8244,2614.8,2614.3,2.3481]
[1723257526113,3.82467,2614.6,2614.3,2.3481]
[1723257527324,3.82496,2614.4,2614.3,2.3481]
[1723257527525,3.82496,2614.4,2614.0,2.3481]
[1723257528052,7.65004,2614.4,2614.0,6.1783436]
[1723257528259,3.82512,2614.3,2614.0,6.1783436]
[1723257528863,6.4308,2615.1,2614.0,6.1783436]
[1723257528864,3.82473,2614.6,2614.0,6.1783436]
[1723257529209,3.82509,2614.4,2614.0,6.1783436]
[1723257529462,3.82513,2614.3,2614.0,6.1783436]
[1723257530232,3.82509,2614.4,2614.0,6.1783436]
[1723257530434,3.82509,2614.4,2614.0,2.3481]
[1723257530825,7.65017,2614.4,2614.0,2.3481]
[1723257531054,3.82521,2614.3,2614.0,2.3481]
[1723257531219,3.82508,2614.4,2614.0,2.3481]
[1723257531617,3.82529,2614.2,2614.0,2.3481]
[1723257531817,3.82529,2614.2,2613.5,7.49]
[1723257531818,3.82584,2613.8,2613.5,7.49]
[1723257532055,3.82584,2613.8,2613.1,3.82678]
[1723257532056,3.82584,2613.8,2613.4,2.3481]
[1723257532254,3.82571,2613.9,2613.4,2.3481]
[1723257533560,3.82546,2614.1,2613.4,2.3481]
[1723257533724,7.65039,2614.3,2613.8,2.3481]
[1723257534066,3.82517,2614.3,2613.8,2.3481]
[1723257535746,3.82486,2614.5,2613.8,2.3481]
[1723257535946,3.82486,2614.5,2613.9,3.82568]
[1723257536211,7.6498,2614.5,2613.9,4.825647]
[1723257536520,3.82497,2614.4,2613.9,4.825647]
[1723257538881,3.82486,2614.5,2613.9,4.825647]
[1723257539255,3.82498,2614.4,2614.0,2.3888]
[1723257541297,3.82498,2614.4,2614.1,0.05985655]
[1723257545546,7.65006,2614.4,2614.1,0.05985655]
[1723257545792,3.82498,2614.4,2614.1,0.05985655]
[1723257546496,3.82517,2614.3,2614.1,0.05985655]
[1723257547796,3.82498,2614.4,2614.1,0.05985655]
[1723257551699,3.82526,2614.2,2614.1,0.05985655]
[1723257552261,10.684444,2614.2,2614.1,0.05985655]
[1723257552463,10.684444,2614.2,2613.4,2.3888]
[1723257552464,3.82598,2613.8,2613.4,2.3888]
[1723257552763,3.82598,2613.8,2613.1,30.87679]
[1723257552764,3.82628,2613.5,2613.1,9.8788]
[1723257553304,7.65268,2613.5,2613.1,11.249388]
[1723257553493,3.82628,2613.5,2613.1,3.759388]
[1723257553654,3.82628,2613.5,2613.1,2.3888]
[1723257553859,3.82646,2613.4,2613.1,2.3888]
[1723257554476,3.82628,2613.5,2613.1,2.3888]
[1723257555060,7.65267,2613.5,2613.1,2.3888]
[1723257555690,3.82628,2613.5,2613.1,2.3888]
[1723257556362,3.82628,2613.5,2613.2,0.06029263]
[1723257558019,6.2179,2614.2,2613.2,0.38173496]
[1723257558176,2.2689,2614.2,2613.2,0.38173496]
[1723257559400,3.82578,2613.9,2613.3,3.82656]
[1723257559969,3.82578,2613.9,2613.4,0.06029263]
[1723257560377,7.65102,2614.1,2613.5,2.4391]
[1723257560616,3.82578,2613.9,2613.5,2.4391]
[1723257561111,7.65158,2613.9,2613.6,0.06029263]
[1723257561468,3.82584,2613.8,2613.6,0.06029263]
[1723257561991,3.82599,2613.7,2613.6,0.06029263]
[1723257562303,3.82623,2613.6,2613.1,2.4391]
[1723257563067,3.82599,2613.7,2613.1,6.26596]
[1723257563265,3.82668,2613.3,2612.8,2.4391]
[1723257564432,7.6528,2613.5,2612.8,6.26638]
[1723257565012,3.82646,2613.4,2612.8,6.26638]
[1723257565811,3.82646,2613.4,2612.8,3.82728]
[1723257565978,3.82607,2613.7,2613.2,3.82668]
[1723257566180,7.65154,2613.9,2613.3,2.821768]
[1723257566382,3.82611,2613.7,2613.3,2.821768]
[1723257566583,3.82622,2613.6,2613.3,2.821768]
[1723257566880,3.82622,2613.6,2613.3,2.4391]
[1723257569005,3.82611,2613.7,2613.3,2.4391]
[1723257569212,3.82576,2613.9,2613.3,2.4391]
[1723257569395,7.65156,2613.9,2613.3,2.4391]
[1723257569597,3.82582,2613.9,2613.3,2.4391]
[1723257570527,3.82609,2613.7,2613.3,2.4391]
[1723257570669,3.82609,2613.7,2613.3,3.0733484]
[1723257571372,3.82609,2613.7,2613.4,0.06071103]
[1723257573771,3.82574,2613.9,2613.4,0.06071103]
[1723257573971,3.82587,2613.8,2613.4,0.06071103]
[1723257578123,5.3925,2614.4,2613.5,3.82627]
[1723257578124,3.82544,2614.1,2613.5,3.82627]
[1723257578418,3.82519,2614.3,2613.7,6.29979]
[1723257578606,7.65041,2614.3,2613.7,2.55041071]
[1723257578806,3.82526,2614.2,2613.8,0.06110276]
[1723257578992,3.82542,2614.1,2613.7,3.61640589]
[1723257579299,3.82542,2614.1,2613.7,3.53989518]
[1723257579501,3.82542,2614.1,2613.7,2.4739]
[1723257579695,3.82542,2614.1,2613.8,0.06088909]
[1723257580000,3.82542,2614.1,2613.7,2.4739]
[1723257580203,3.82542,2614.1,2613.9,0.06088909]
[1723257580402,3.82542,2614.1,2613.7,2.4739]
[1723257580603,3.82542,2614.1,2614.0,0.06086239]
[1723257580791,3.82542,2614.1,2613.7,2.4739]
[1723257581424,7.65093,2614.1,2613.8,0.06086239]
[1723257581613,3.82542,2614.1,2613.7,2.4739]
[1723257581812,3.82542,2614.1,2613.9,0.06086239]
[1723257582003,3.82542,2614.1,2613.7,2.4739]
[1723257582205,3.82542,2614.1,2614.0,0.06086239]
[1723257582605,3.82542,2614.1,2613.7,3.14355305]
[1723257582808,3.82542,2614.1,2614.0,0.06089799]
[1723257582991,3.82542,2614.1,2613.7,3.14355305]
[1723257583197,3.82542,2614.1,2614.0,0.06089799]
[1723257583419,3.82542,2614.1,2613.7,3.14355305]
[1723257583625,3.82542,2614.1,2614.0,0.06089799]
[1723257583997,3.82542,2614.1,2613.7,3.14355305]
[1723257584223,3.82542,2614.1,2614.0,0.06051518]
[1723257584397,3.82542,2614.1,2613.7,3.14355305]
[1723257584598,3.82542,2614.1,2614.0,0.06051518]
[1723257584798,3.82542,2614.1,2613.7,3.14355305]
[1723257585016,3.82542,2614.1,2614.0,0.06051518]
[1723257585205,3.82542,2614.1,2613.7,3.14355305]
[1723257585422,3.82518,2614.3,2614.0,0.06051518]
[1723257585622,7.65041,2614.3,2613.7,2.4739]
[1723257585810,7.65041,2614.3,2614.1,0.06051518]
[1723257586120,7.65041,2614.3,2613.7,2.4739]
[1723257586333,7.65041,2614.3,2613.8,1.05223905]
[1723257586498,7.65041,2614.3,2613.8,1.11273643]
[1723257586698,7.65041,2614.3,2613.9,2.4739]
[1723257587135,3.82526,2614.2,2614.0,0.06049738]
[1723257588255,11.4762,2614.1,2614.0,0.06049738]
[1723257588454,13.25202,2614.1,2614.0,0.06049738]
[1723257588597,3.82618,2613.6,2613.3,9.9639]
[1723257588800,3.82618,2613.6,2613.3,2.4739]
[1723257589046,7.65246,2613.6,2613.3,2.4739]
[1723257589301,3.82618,2613.6,2613.3,2.4739]
[1723257590537,3.82631,2613.5,2613.3,2.4739]
[1723257590923,3.82618,2613.6,2613.3,2.4739]
[1723257591295,3.82592,2613.8,2613.3,2.72129]
[1723257591497,7.65126,2614.0,2613.4,3.82633]
[1723257591701,3.8256,2614.0,2613.5,2.4739]
[1723257591922,3.8256,2614.0,2613.5,2.746029]
[1723257591923,3.82594,2613.8,2613.5,2.746029]
[1723257592246,3.82533,2614.2,2613.6,3.82609]
[1723257592400,3.82533,2614.2,2613.7,2.4739]
[1723257592609,3.82533,2614.2,2613.8,0.629994]
[1723257593142,3.82533,2614.2,2613.9,2.4739]
[1723257595714,3.82541,2614.1,2613.9,2.4739]
[1723257596742,3.82505,2614.4,2613.9,2.4739]
[1723257597364,7.65012,2614.4,2613.9,2.4739]
[1723257597659,7.65012,2614.4,2613.9,3.17452809]
[1723257598037,3.82513,2614.3,2613.9,3.17452809]
[1723257601235,3.82527,2614.2,2614.0,0.05827103]
[1723257601739,3.8254,2614.1,2614.0,0.05827103]
[1723257601965,4.20794,2614.1,2614.0,0.05827103]
[1723257602264,3.82575,2613.9,2613.6,2.3134]
[1723257602638,3.82533,2614.2,2613.7,0.05619617]
[1723257602865,3.82549,2614.1,2613.7,0.05619617]
[1723257603675,3.82555,2614.0,2613.7,0.05619617]
[1723257604053,3.82532,2614.2,2613.7,0.05619617]
[1723257604054,3.82541,2614.1,2613.7,0.05619617]
[1723257605563,3.82532,2614.2,2613.7,3.88217617]
[1723257605769,1.646,2614.1,2613.7,0.05619617]
[1723257606971,5.47141,2614.1,2613.7,0.05619617]
[1723257608668,1.646,2614.1,2613.7,0.05619617]
[1723257608873,3.82566,2614.0,2613.7,0.05619617]
[1723257609081,3.82584,2613.8,2613.7,0.05619617]
[1723257609969,5.4717,2613.9,2613.7,0.05619617]
[1723257610268,6.21043,2614.1,2613.6,2.3134]
[1723257610269,3.82543,2614.1,2613.6,2.3134]
[1723257610468,3.82543,2614.1,2613.8,0.05619617]
[1723257610769,3.82543,2614.1,2613.9,0.05619617]
[1723257611075,5.4716,2614.0,2613.6,2.927358]
[1723257611263,5.4716,2614.0,2613.6,2.3134]
[1723257611675,3.826,2613.7,2613.3,2.3134]
[1723257612752,3.82616,2613.6,2613.3,2.3134]
[1723257612980,3.826,2613.7,2613.3,2.3134]
[1723257613278,5.47214,2613.6,2613.3,2.3134]
[1723257613685,2.385,2613.9,2612.9,6.82705]
[1723257613686,3.82645,2613.4,2613.1,2.3134]
[1723257614974,3.82644,2613.4,2613.1,2.3134]
[1723257615184,3.82644,2613.4,2612.9,3.909705]
[1723257615693,3.82681,2613.2,2612.7,2.3134]
[1723257615898,3.82688,2613.1,2612.5,2.3134]
[1723257616248,3.82688,2613.1,2612.6,0.05674706]
[1723257616448,3.82688,2613.1,2612.6,0.29376177]
[1723257616647,3.82665,2613.3,2612.6,4.12136177]
[1723257617275,7.65335,2613.3,2612.6,4.12136177]
[1723257617492,3.82665,2613.3,2612.6,4.12136177]
[1723257617658,3.82665,2613.3,2612.7,2.3134]
[1723257617989,3.82665,2613.3,2612.7,7.23199814]
[1723257618779,3.82675,2613.2,2612.7,3.40454814]
[1723257619196,3.82635,2613.5,2612.7,7.23188814]
[1723257619379,6.337,2613.7,2612.9,3.82708]
[1723257619380,3.82608,2613.7,2612.9,3.82708]
[1723257619598,3.82608,2613.7,2613.1,3.82678]
[1723257620086,3.82608,2613.7,2613.2,0.05745823]
[1723257622920,3.82614,2613.6,2613.2,0.05745823]
[1723257623223,3.82646,2613.4,2613.0,2.2889]
[1723257623423,3.82646,2613.4,2613.3,0.05751146]
[1723257623713,3.82646,2613.4,2613.0,2.2889]
[1723257623910,3.82646,2613.4,2613.3,0.05754702]
[1723257624075,3.82646,2613.4,2613.0,2.2889]
[1723257624281,7.6524,2613.6,2613.3,0.05754702]
[1723257624610,3.82629,2613.5,2613.4,0.05754702]
[1723257624811,3.82629,2613.5,2613.0,2.2889]
[1723257625113,3.82614,2613.6,2613.4,0.05768038]
[1723257625320,3.82614,2613.6,2613.0,6.1159]
[1723257625479,3.82614,2613.6,2613.5,0.05768038]
[1723257625680,3.82587,2613.8,2613.1,4.821123]
[1723257625979,3.82607,2613.7,2613.1,0.994303]
[1723257626179,3.82607,2613.7,2613.2,0.05760925]
[1723257629818,2.4629,2614.0,2613.4,3.82642]
[1723257629819,3.82564,2614.0,2613.4,3.82642]
[1723257630023,3.82532,2614.2,2613.6,3.82607]
[1723257630395,3.82532,2614.2,2613.7,0.05750257]
[1723257631216,7.65009,2614.4,2613.7,0.05750257]
[1723257631420,3.82514,2614.3,2613.7,4.50068583]
[1723257631794,3.82514,2614.3,2613.7,4.53966452]
[1723257631994,3.8253,2614.2,2613.7,0.71372452]
[1723257635984,3.8255,2614.1,2613.7,0.09648126]
[1723257636197,3.8255,2614.1,2613.5,6.11518]
[1723257636392,3.8255,2614.1,2613.8,0.09561024]
[1723257636617,3.8255,2614.1,2613.5,6.11518]
[1723257636916,3.82555,2614.0,2613.9,0.09561024]
[1723257637119,3.82555,2614.0,2613.5,6.14303871]
[1723257637120,3.82542,2614.1,2613.5,2.2889]
[1723257637297,3.82542,2614.1,2613.9,0.09561024]
[1723257637627,3.82542,2614.1,2614.0,0.09561024]
[1723257637833,3.82542,2614.1,2613.6,0.6422214]
[1723257637988,3.82542,2614.1,2614.0,0.09561024]
[1723257638185,3.8253,2614.2,2613.6,0.6422214]
[1723257638390,3.8253,2614.2,2613.7,0.77135038]
[1723257639232,3.8253,2614.2,2613.8,2.2874]
[1723257639592,3.8253,2614.2,2613.9,0.09561024]
[1723257639795,5.4713,2614.2,2613.9,0.09561024]
[1723257641995,3.8253,2614.2,2613.9,0.09561024]
[1723257642196,5.4713,2614.2,2613.9,0.09561024]
[1723257646411,5.47155,2614.0,2613.9,0.09561024]
[1723257646639,1.646,2614.0,2613.5,2.2874]
[1723257646806,3.82593,2613.8,2613.5,2.2874]
[1723257648497,5.47162,2614.0,2613.5,2.2874]
[1723257648498,3.8257,2613.9,2613.5,2.2874]
[1723257649325,5.47223,2613.6,2613.3,9.7774]
[1723257649656,5.47223,2613.6,2613.3,2.2874]
[1723257649828,5.47223,2613.6,2613.1,2.2874]
[1723257649829,3.82629,2613.5,2613.1,2.2874]
[1723257651353,3.82603,2613.7,2613.1,2.2874]
[1723257651560,3.82603,2613.7,2613.1,6.11424]
[1723257651852,6.15547,2613.9,2613.3,6.11389]
[1723257651853,5.47177,2613.9,2613.3,6.11389]
[1723257653468,9.29757,2613.9,2613.3,6.11389]
[1723257653671,9.29757,2613.9,2613.3,2.2874]
[1723257654229,5.47177,2613.9,2613.3,2.2874]
[1723257654557,5.47177,2613.9,2613.3,3.336601]
[1723257655546,5.47177,2613.9,2613.4,3.8264]
[1723257659530,3.82577,2613.9,2613.4,3.8264]
[1723257661465,3.82577,2613.9,2613.5,0.09601018]
[1723257661967,5.47156,2614.0,2613.5,0.09601018]
[1723257662161,5.47156,2614.0,2613.6,2.2861]
[1723257662665,5.47156,2614.0,2613.7,0.09601018]
[1723257669174,1.646,2614.0,2613.7,0.09601018]
[1723257672242,3.82572,2613.9,2613.7,0.09601018]
[1723257672481,1.646,2613.8,2613.7,0.09601018]
[1723257675617,5.47184,2613.8,2613.7,0.09601018]
[1723257676968,16.408976,2613.8,2613.7,0.09601018]
[1723257677285,16.408976,2613.8,2613.0,2.2861]
[1723257677286,3.82676,2613.2,2613.0,2.2861]
[1723257678599,1.646,2613.1,2612.3,2.3475]
[1723257678803,3.82789,2612.4,2612.3,2.3475]
[1723257678981,3.82824,2612.2,2611.3,6.13760104]
[1723257679201,3.82885,2611.8,2611.4,2.3475]
[1723257679370,5.47518,2611.6,2611.4,2.3475]
[1723257679571,5.47518,2611.6,2611.1,2.3475]
[1723257679797,3.82953,2611.3,2611.1,2.3475]
[1723257679980,0.7659,2611.3,2610.7,9.8375]
[1723257680193,3.82996,2611.0,2610.7,2.3475]
[1723257680408,7.78736,2611.4,2610.2,2.3475]
[1723257680580,3.83024,2610.8,2610.2,2.34639234]
[1723257680780,3.83024,2610.8,2610.2,2.96415257]
[1723257681606,3.8304,2610.7,2610.2,2.96415257]
[1723257682110,3.83024,2610.8,2610.2,2.34639234]
[1723257682111,3.83054,2610.6,2610.2,2.34639234]
[1723257682311,3.958,2611.1,2609.7,11.3218]
[1723257682312,3.83068,2610.5,2609.7,11.3218]
[1723257682482,3.83068,2610.5,2609.8,3.83169]
[1723257682686,3.83068,2610.5,2609.9,1.515349]
[1723257683386,3.958,2611.4,2610.4,3.83068]
[1723257683609,3.82962,2611.3,2610.5,6.17815]
[1723257683812,3.82962,2611.3,2610.6,1.000883]
[1723257684412,10.22893,2611.7,2610.9,3.83008]
[1723257684413,3.82911,2611.6,2610.9,3.83008]
[1723257684720,3.82911,2611.6,2611.0,0.07649015]
[1723257684885,3.82924,2611.5,2611.0,0.07649015]
[1723257685227,3.82963,2611.3,2610.6,1.000883]
[1723257685382,3.82963,2611.3,2610.5,9.17812]
[1723257685582,3.82963,2611.3,2610.6,3.83052]
[1723257686286,3.82963,2611.3,2610.5,9.17812]
[1723257686524,3.82963,2611.3,2610.6,3.83052]
[1723257686854,3.82963,2611.3,2610.5,9.17812]
[1723257687062,3.8299,2611.1,2610.6,0.917812]
[1723257687364,3.8302,2610.9,2610.2,2.3475]
[1723257687661,3.8302,2610.9,2610.2,6.17861]
[1723257687857,3.8302,2610.9,2610.3,1.000987]
[1723257688070,3.8302,2610.9,2610.3,4.831947]
[1723257688429,3.82988,2611.1,2610.3,4.831947]
[1723257689039,3.82988,2611.1,2610.5,3.83066]
[1723257690881,3.82988,2611.1,2610.3,4.831857]
[1723257691379,3.82996,2611.0,2610.4,0.8034199]
[1723257691923,3.82996,2611.0,2610.4,4.6342499]
[1723257692126,3.82996,2611.0,2610.4,0.8034199]
[1723257692378,3.83022,2610.9,2610.4,0.0854842]
[1723257694942,3.82926,2611.5,2610.7,3.83025]
[1723257695264,3.82938,2611.4,2610.8,0.0852796]
[1723257695563,3.82938,2611.4,2610.8,0.71158256]
[1723257696232,3.82938,2611.4,2610.8,0.78793973]
[1723257696433,3.82926,2611.5,2610.9,7.65993]
[1723257696646,3.82909,2611.6,2611.0,3.90651879]
[1723257696851,7.65799,2611.7,2611.0,3.99179839]
[1723257697152,3.82894,2611.7,2611.0,4.83663252]
[1723257697327,7.65799,2611.7,2611.0,4.83663252]
[1723257697532,7.65799,2611.7,2611.0,1.00670252]
[1723257697533,3.82933,2611.5,2611.0,1.00670252]
[1723257697784,3.82933,2611.5,2611.0,0.0852796]
[1723257698063,2.4419,2611.8,2610.6,3.83046]
[1723257698064,3.82975,2611.2,2610.6,3.83046]
[1723257698268,3.8298,2611.1,2610.4,17.4419]
[1723257698459,3.8298,2611.1,2610.5,5.1442887]
[1723257698641,3.82975,2611.2,2610.5,8.9749587]
[1723257700296,3.82941,2611.4,2610.8,3.83015]
[1723257700635,3.82941,2611.4,2610.6,3.83053]
[1723257700861,3.82955,2611.3,2610.7,0.89748187]
[1723257703068,3.82976,2611.2,2610.7,0.89748187]
[1723257703652,7.65956,2611.2,2610.6,3.83044]
[1723257703972,3.82976,2611.2,2610.6,3.83044]
[1723257706133,7.65954,2611.2,2610.6,3.83044]
[1723257706337,7.65954,2611.2,2610.7,0.08519066]
[1723257706743,3.82976,2611.2,2610.7,0.08519066]
[1723257707884,7.65953,2611.2,2610.7,0.08519066]
[1723257708085,3.82976,2611.2,2610.7,0.08519066]
[1723257708383,3.82976,2611.2,2610.7,0.9911826]
[1723257717912,3.82914,2611.6,2610.9,2.2904]
[1723257718122,3.82883,2611.8,2611.1,3.82969]
[1723257718409,3.82883,2611.8,2611.3,2.3171]
[1723257718594,2.3874,2612.1,2611.3,2.3171]
[1723257718595,3.82835,2612.1,2611.5,3.82913]
[1723257718993,3.82848,2612.0,2611.6,0.16163076]
[1723257719306,3.82848,2612.0,2611.6,0.08516398]
[1723257719506,3.82848,2612.0,2611.4,3.90592295]
[1723257719681,3.82848,2612.0,2611.7,0.08515509]
[1723257719981,3.82848,2612.0,2611.4,3.82935]
[1723257720181,3.82848,2612.0,2611.8,0.08515509]
[1723257720423,3.82848,2612.0,2611.4,3.82935]
[1723257720628,3.82848,2612.0,2609.9,3.94351537]
[1723257720629,10.810111,2612.0,2611.9,0.08515509]
[1723257720810,3.82913,2611.6,2611.0,2.3171]
[1723257721017,4.212043,2611.6,2611.0,2.3171]
[1723257721244,3.82913,2611.6,2611.1,0.08111212]
[1723257721597,3.82938,2611.4,2611.1,0.08111212]
[1723257725641,3.82965,2611.2,2611.1,0.08111212]
[1723257726140,3.82938,2611.4,2611.1,0.08111212]
[1723257726348,3.82938,2611.4,2610.9,7.49]
[1723257726529,3.82938,2611.4,2611.2,0.08111212]
[1723257726701,3.82938,2611.4,2610.9,7.49]
[1723257727038,3.82938,2611.4,2611.3,0.08111212]
[1723257727239,3.82954,2611.3,2610.7,7.22005194]
[1723257727403,3.82954,2611.3,2610.8,2.33605219]
[1723257728106,7.65915,2611.3,2610.8,2.33605219]
[1723257728309,7.65915,2611.3,2610.7,3.38969194]
[1723257728799,3.82954,2611.3,2610.8,3.8302]
[1723257730501,3.82927,2611.5,2610.8,7.66035]
[1723257730740,7.65859,2611.5,2610.9,0.72198919]
[1723257730910,3.82896,2611.7,2611.1,2.4837]
[1723257731108,6.19738,2611.9,2611.2,3.82953]
[1723257732421,3.82841,2612.1,2611.1,3.18725792]
[1723257732743,3.82841,2612.1,2611.4,3.82922]
[1723257732903,3.8286,2612.0,2611.4,3.82922]
[1723257733247,3.82895,2611.7,2611.2,2.4837]
[1723257733440,3.82909,2611.6,2611.2,2.4837]
[1723257733655,3.82895,2611.7,2611.1,3.82977]
[1723257733804,3.82895,2611.7,2611.2,0.765964]
[1723257734638,3.82895,2611.7,2611.1,3.82977]
[1723257734847,3.82895,2611.7,2610.9,13.80367]
[1723257735147,3.82917,2611.6,2611.0,3.8299]
[1723257735815,3.82917,2611.6,2611.0,7.65975]
[1723257736358,0.23687,2612.2,2611.3,2.4837]
[1723257736517,3.82843,2612.1,2611.4,3.90581505]
[1723257736918,3.82843,2612.1,2611.5,2.4837]
[1723257737133,3.82843,2612.1,2611.6,0.71552474]
[1723257737628,3.82843,2612.1,2611.7,0.08152942]
[1723257738365,3.82783,2612.5,2611.9,6.13152]
[1723257738528,7.65569,2612.5,2611.9,2.3029]
[1723257738731,3.82783,2612.5,2612.0,0.08152942]
[1723257739653,2.3687,2612.6,2612.0,0.08152942]
[1723257739654,3.82764,2612.6,2612.0,3.98647498]
[1723257739859,3.82741,2612.8,2612.0,4.53122036]
[1723257741562,3.82741,2612.8,2612.2,3.82814]
[1723257742055,3.958,2613.1,2612.4,6.13069]
[1723257742056,3.82689,2613.1,2612.4,6.13069]
[1723257742267,3.82689,2613.1,2612.5,3.82774]
[1723257742426,3.82666,2613.3,2612.7,3.82741]
[1723257742621,3.82666,2613.3,2612.8,0.07653818]
[1723257742833,3.82666,2613.3,2612.8,0.1580676]
[1723257742834,4.591961,2613.3,2612.8,0.1580676]
[1723257743038,4.591961,2613.3,2612.8,0.07653818]
[1723257743250,4.591961,2613.3,2612.9,0.08040216]
[1723257744048,3.82701,2613.0,2612.9,0.08040216]
[1723257744258,3.82741,2612.8,2612.1,9.13112]
[1723257744760,3.82741,2612.8,2612.2,3.82818]
[1723257747429,3.82775,2612.5,2612.1,2.3029]